bitfinex-derivatives/quotes_SOLF0:USTF0_20260213
["timestamp","ask_amount","ask_price","bid_price","bid_amount"]
[1771013193814,3.22892322,84.5,84.469,3.99850899]
[1771013194111,3.22892322,84.49,84.455,3.98353577]
[1771013194315,10.6575,84.494,84.457,3.98353577]
[1771013196715,3.22892322,84.49,84.459,4.03701208]
[1771013196913,3.42052065,84.5,84.459,4.03701208]
[1771013197218,3.42052065,84.5,84.462,10.6615]
[1771013197419,10.6569,84.499,84.459,4.03701208]
[1771013199718,10.6569,84.499,84.456,10.6622]
[1771013199719,10.6584,84.487,84.457,4.03701208]
[1771013200125,3.22892322,84.48,84.444,14.70061208]
[1771013200422,3.22892322,84.47,84.444,4.03701208]
[1771013200618,3.22892322,84.47,84.429,4.03701208]
[1771013201115,3.22892322,84.48,84.44,4.03701208]
[1771013201515,3.22892322,84.48,84.441,10.6641]
[1771013202111,3.22892322,84.48,84.441,14.70111208]
[1771013202317,3.22892322,84.47,84.441,4.03701208]
[1771013202520,3.22892322,84.48,84.441,4.03701208]
[1771013203628,3.22892322,84.48,84.449,14.70001208]
[1771013204015,3.22892322,84.48,84.45,4.03701208]
[1771013204917,3.22892322,84.48,84.41,456.36046771]
[1771013204918,13.88572322,84.5,84.453,4.03701208]
[1771013205625,10.84030724,84.547,84.422,167.2331]
[1771013205626,0.12663269,84.525,84.469,4.03701208]
[1771013205822,3.22892322,84.53,84.481,4.03701208]
[1771013206528,0.12663269,84.538,84.489,4.03701208]
[1771013206718,0.12663269,84.538,84.446,22.01648719]
[1771013206719,3.22892322,84.54,84.491,4.03701208]
[1771013207317,10.84030724,84.594,84.468,110.16]
[1771013207318,3.22892322,84.57,84.521,4.03701208]
[1771013207517,109.58,84.6,84.465,21.3221]
[1771013207518,3.22892322,84.54,84.505,4.03701208]
[1771013208533,3.22892322,84.53,84.491,4.03701208]
[1771013209731,10.6532,84.529,84.491,4.03701208]
[1771013211231,10.6521,84.537,84.491,4.03701208]
[1771013212629,10.6531,84.529,84.491,4.03701208]
[1771013212833,10.6531,84.529,84.473,4.13812286]
[1771013213224,10.6531,84.529,84.46,8.64550606]
[1771013213225,10.6521,84.537,84.489,4.13841686]
[1771013214534,10.651,84.545,84.492,4.13841686]
[1771013215236,10.651,84.545,84.497,14.8045656]
[1771013215632,10.651,84.545,84.497,4.1475656]
[1771013220439,10.6519,84.539,84.497,4.1475656]
[1771013223835,10.6507,84.548,84.497,4.1475656]
[1771013224136,8.64258785,84.57,84.507,4.21135947]
[1771013224737,10.6505,84.55,84.491,4.21135947]
[1771013225035,8.64258785,84.57,84.491,4.21135947]
[1771013225626,8.64258785,84.57,84.47,8.64258785]
[1771013225627,10.6515,84.542,84.497,4.18615737]
[1771013225938,8.64258785,84.57,84.497,4.18615737]
[1771013226438,10.6522,84.536,84.497,4.18615737]
[1771013226638,109.04,84.569,84.497,4.18615737]
[1771013227238,10.6504,84.551,84.505,10.656]
[1771013227434,10.6504,84.551,84.505,14.83775382]
[1771013227838,109.52,84.566,84.505,14.83775382]
[1771013228233,8.64258785,84.57,84.508,4.18175382]
[1771013228442,109.52,84.566,84.508,4.18175382]
[1771013228839,8.64258785,84.57,84.508,4.18175382]
[1771013229741,10.6498,84.555,84.511,4.22969815]
[1771013231830,8.64258785,84.57,84.511,4.22969815]
[1771013231831,10.6506,84.549,84.511,4.22969815]
[1771013232434,10.6497,84.556,84.511,14.88499815]
[1771013232634,10.6497,84.556,84.512,4.26990497]
[1771013232837,312.63044422,84.595,84.512,4.26990497]
[1771013232838,3.22514212,84.56,84.512,4.26990497]
[1771013233936,10.6493,84.559,84.521,10.654]
[1771013234138,312.63044422,84.595,84.522,4.26897047]
[1771013234139,3.22514212,84.57,84.522,4.26897047]
[1771013234441,3.22514212,84.57,84.523,4.26897047]
[1771013235141,10.6494,84.558,84.523,4.26897047]
[1771013236737,10.6494,84.558,84.516,10.6547]
[1771013236939,3.22514212,84.55,84.51,4.31587527]
[1771013237133,3.22514212,84.55,84.5,3.22514212]
[1771013237334,3.22514212,84.53,84.496,4.33522613]
[1771013237535,3.22514212,84.53,84.481,4.33522613]
[1771013237739,10.6533,84.528,84.483,4.33522613]
[1771013237935,3.22514212,84.51,84.469,4.33522613]
[1771013238141,3.22514212,84.5,84.455,4.33522613]
[1771013238540,3.22514212,84.51,84.46,3.22514212]
[1771013238741,10.6545,84.518,84.47,3.22514212]
[1771013238939,10.6545,84.518,84.471,4.33522613]
[1771013242632,10.6563,84.503,84.454,4.34954194]
[1771013242838,3.22514212,84.5,84.454,4.34954194]
[1771013243143,3.22514212,84.46,84.427,4.34917629]
[1771013244042,3.22514212,84.45,84.41,460.709644]
[1771013244253,3.22514212,84.45,84.411,4.34917629]
[1771013245046,10.6613,84.464,84.411,4.34917629]
[1771013245839,10.6613,84.464,84.411,15.01697629]
[1771013247849,10.6622,84.457,84.411,4.34917629]
[1771013249344,10.6631,84.45,84.41,3.97243546]
[1771013251245,10.664,84.443,84.41,3.97243546]
[1771013252351,10.6629,84.451,84.41,3.97243546]
[1771013252546,8.66180558,84.47,84.411,4.59349729]
[1771013253144,8.66180558,84.47,84.41,3.97243546]
[1771013253448,117.54180558,84.47,84.41,3.97243546]
[1771013254654,10.6618,84.46,84.411,4.6799086]
[1771013256549,109.04,84.469,84.41,3.97243546]
[1771013257558,8.66180558,84.47,84.411,4.66717698]
[1771013257762,109.54,84.469,84.411,4.66717698]
[1771013258057,10.6621,84.457,84.411,4.66717698]
[1771013258246,8.66180558,84.49,84.411,4.66717698]
[1771013258446,102.66,84.489,84.411,4.66717698]
[1771013258646,8.66180558,84.49,84.411,4.66717698]
[1771013258956,109.64,84.489,84.411,4.66717698]
[1771013259155,8.66180558,84.49,84.419,4.62018478]
[1771013259355,8.66180558,84.51,84.419,4.62018478]
[1771013259558,10.6609,84.467,84.419,4.62018478]
[1771013260748,10.6609,84.467,84.421,10.6666]
[1771013261659,10.6617,84.461,84.419,4.62018478]
[1771013261860,8.66180558,84.49,84.419,4.62018478]
[1771013262660,94.38,84.492,84.427,4.64002063]
[1771013262856,109.58,84.5,84.427,4.64002063]
[1771013263061,109.6,84.5,84.427,4.64002063]
[1771013263750,8.66180558,84.51,84.427,4.64002063]
[1771013263953,109.66,84.509,84.427,4.64002063]
[1771013264663,8.66180558,84.53,84.446,4.68170226]
[1771013265754,10.6557,84.508,84.465,4.77727278]
[1771013265954,8.66180558,84.53,84.465,4.77727278]
[1771013266450,109.8,84.529,84.465,4.77727278]
[1771013266858,3.22940723,84.51,84.465,4.77727278]
[1771013267761,10.6563,84.504,84.465,4.77727278]
[1771013269263,10.6552,84.513,84.465,4.77727278]
[1771013269568,10.6552,84.513,84.47,3.22940723]
[1771013269967,10.656,84.506,84.47,3.22940723]
[1771013270168,10.656,84.506,84.467,4.75546871]
[1771013272962,10.6551,84.514,84.468,10.6607]
[1771013273169,10.6551,84.514,84.48,3.22940723]
[1771013273361,10.6551,84.514,84.48,7.98974075]
[1771013273566,422.26093053,84.575,84.49,3.22940723]
[1771013273567,3.22940723,84.55,84.49,3.22940723]
[1771013273963,3.22940723,84.55,84.491,4.76033352]
[1771013274774,10.6525,84.534,84.491,4.76033352]
[1771013275165,3.22940723,84.55,84.491,4.76033352]
[1771013275361,10.6544,84.519,84.476,4.78015995]
[1771013275767,10.6544,84.519,84.48,3.22940723]
[1771013276072,10.6544,84.519,84.476,4.78015995]
[1771013277974,10.6544,84.519,84.477,10.6596]
[1771013279070,10.6544,84.519,84.48,3.22940723]
[1771013279266,10.6534,84.526,84.481,10.6591]
[1771013279474,3.22940723,84.53,84.481,10.6591]
[1771013280582,10.6534,84.527,84.482,4.78985117]
[1771013280777,3.22940723,84.54,84.491,4.78985117]
[1771013281282,10.6533,84.527,84.491,4.78985117]
[1771013281581,3.22940723,84.53,84.476,4.75829734]
[1771013282574,10.6541,84.521,84.48,3.22940723]
[1771013283077,10.6541,84.521,84.48,3.227898]
[1771013283278,3.227898,84.52,84.464,4.75795049]
[1771013283578,3.227898,84.52,84.414,35.52]
[1771013283579,3.227898,84.54,84.481,4.75795049]
[1771013283778,256.63483053,84.575,84.511,4.75795049]
[1771013283972,3.40145215,84.569,84.53,3.227898]
[1771013284880,10.6482,84.568,84.53,3.227898]
[1771013285081,10.6482,84.568,84.52,3.227898]
[1771013285871,10.6482,84.568,84.521,3.80107411]
[1771013286871,10.6482,84.568,84.527,3.80107411]
[1771013287073,3.227898,84.58,84.531,3.80107411]
[1771013287270,6.63776746,84.6,84.542,3.80107411]
[1771013287470,10.6433,84.607,84.551,3.80107411]
[1771013287675,3.227898,84.6,84.551,3.80107411]
[1771013287973,13.872098,84.6,84.556,10.6496]
[1771013288386,3.227898,84.59,84.556,10.6496]
[1771013288882,3.227898,84.58,84.544,10.6511]
[1771013289181,3.227898,84.59,84.544,10.6511]
[1771013289774,3.227898,84.59,84.544,14.45217411]
[1771013289970,3.227898,84.59,84.552,10.6501]
[1771013290174,3.227898,84.6,84.552,10.6501]
[1771013290370,3.40986946,84.601,84.553,3.80107411]
[1771013290580,3.227898,84.58,84.531,3.80107411]
[1771013291380,3.227898,84.58,84.545,10.651]
[1771013293880,3.227898,84.57,84.536,10.6521]
[1771013294184,3.227898,84.57,84.505,140.68]
[1771013294185,3.227898,84.58,84.537,3.80107411]
[1771013294586,3.227898,84.58,84.539,3.80107411]
[1771013295475,3.227898,84.58,84.54,10.6516]
[1771013298079,6.72241739,84.58,84.54,10.6516]
[1771013298276,3.227898,84.56,84.525,3.80107411]
[1771013298484,3.227898,84.55,84.507,3.80107411]
[1771013299486,3.227898,84.56,84.521,3.80107411]
[1771013300186,3.227898,84.58,84.532,3.80107411]
[1771013300778,3.49365982,84.622,84.571,3.80107411]
[1771013300988,3.49365982,84.622,84.57,3.227898]
[1771013300989,3.227898,84.63,84.581,3.80107411]
[1771013301385,3.227898,84.62,84.581,3.80107411]
[1771013301583,3.227898,84.62,84.57,3.227898]
[1771013301889,3.227898,84.61,84.566,3.80107411]
[1771013302087,3.42112476,84.626,84.566,3.80107411]
[1771013302292,3.227898,84.67,84.611,4.07971419]
[1771013302984,8.61877691,84.69,84.611,4.07971419]
[1771013303484,8.61877691,84.65,84.551,3.80107411]
[1771013303684,108.46,84.649,84.551,3.80107411]
[1771013303883,108.46,84.649,84.55,8.61877691]
[1771013303884,10.6393,84.638,84.566,3.80107411]
[1771013304087,94.4,84.664,84.571,3.80107411]
[1771013304290,0.5583179,84.663,84.571,3.80107411]
[1771013304591,0.5583179,84.663,84.57,8.61877691]
[1771013304592,0.5583179,84.663,84.601,3.80107411]
[1771013304786,8.61877691,84.67,84.601,3.80107411]
[1771013304787,0.5583179,84.682,84.601,3.80107411]
[1771013304989,0.17944601,84.67,84.601,3.80107411]
[1771013305786,10.6358,84.667,84.612,10.6425]
[1771013305982,0.17944601,84.666,84.601,3.80107411]
[1771013306293,0.17944601,84.662,84.601,3.80107411]
[1771013307183,0.22241674,84.658,84.601,3.80107411]
[1771013307585,2.05610569,84.707,84.55,102.99877691]
[1771013307586,0.22241674,84.676,84.605,3.9685182]
[1771013307984,0.22241674,84.674,84.605,3.9685182]
[1771013308184,0.22241674,84.674,84.618,3.9685182]
[1771013309888,0.22241674,84.674,84.619,10.6417]
[1771013310979,10.85429551,84.673,84.618,3.9685182]
[1771013311589,10.85429551,84.673,84.59,8.61877691]
[1771013311590,0.21929551,84.673,84.619,3.96689646]
[1771013311790,10.6338,84.683,84.619,3.96689646]
[1771013312594,0.21929551,84.682,84.619,3.96689646]
[1771013312788,0.21929551,84.682,84.629,10.6404]
[1771013314488,10.6341,84.68,84.629,10.6404]
[1771013315194,10.6341,84.68,84.629,14.60729646]
[1771013316195,10.6351,84.672,84.629,3.96689646]
[1771013320400,10.84531834,84.672,84.629,3.96689646]
[1771013320706,0.21021834,84.669,84.608,4.0318937]
[1771013320907,0.21048227,84.667,84.608,4.0318937]
[1771013323811,10.6372,84.655,84.609,10.6429]
[1771013324603,10.6372,84.655,84.609,14.6747937]
[1771013324810,10.6372,84.655,84.612,4.0318937]
[1771013327006,3.21880969,84.64,84.612,4.0318937]
[1771013327412,3.21880969,84.64,84.596,4.0318937]
[1771013328707,0.20076931,84.652,84.596,4.0318937]
[1771013328708,3.21880969,84.63,84.596,4.0318937]
[1771013329518,3.21880969,84.63,84.596,14.6763937]
[1771013329717,3.21880969,84.63,84.597,4.0318937]
[1771013330415,3.21880969,84.64,84.597,4.0318937]
[1771013330815,3.21880969,84.64,84.6,4.0318937]
[1771013331521,10.6394,84.638,84.6,4.0318937]
[1771013331923,10.6394,84.638,84.602,4.0318937]
[1771013333525,3.21880969,84.64,84.602,4.0318937]
[1771013334619,3.21880969,84.64,84.604,4.0318937]
[1771013335415,10.6392,84.639,84.597,10.6444]
[1771013335623,3.21880969,84.62,84.589,4.0318937]
[1771013335827,3.21880969,84.61,84.564,4.0318937]
[1771013336030,3.21880969,84.6,84.564,4.0318937]
[1771013336321,3.21880969,84.59,84.541,4.0318937]
[1771013336731,3.21880969,84.57,84.541,4.0318937]
[1771013337132,3.21880969,84.58,84.541,4.0318937]
[1771013337524,3.21880969,84.6,84.541,4.0318937]
[1771013337732,3.21880969,84.6,84.551,4.0318937]
[1771013338930,3.21880969,84.6,84.569,10.648]
[1771013340332,0.59915527,84.61,84.56,10.649]
[1771013340333,3.21880969,84.59,84.56,10.649]
[1771013340522,3.21880969,84.6,84.56,10.649]
[1771013342228,3.21880969,84.59,84.56,10.649]
[1771013342430,3.21880969,84.59,84.551,10.6502]
[1771013342625,3.21880969,84.57,84.535,4.02904695]
[1771013343126,3.22421961,84.57,84.535,4.02904695]
[1771013343326,3.22421961,84.57,84.541,10.6515]
[1771013343526,3.22421961,84.58,84.541,10.6515]
[1771013344724,10.6469,84.578,84.535,4.02904695]
[1771013344930,3.22421961,84.56,84.532,10.6525]
[1771013345133,3.22421961,84.56,84.518,4.02904695]
[1771013345530,3.22421961,84.55,84.519,10.6542]
[1771013345928,10.6492,84.56,84.504,4.02904695]
[1771013345929,3.22421961,84.54,84.504,4.02904695]
[1771013346733,3.22421961,84.55,84.509,10.6555]
[1771013346930,0.60496852,84.555,84.509,10.6555]
[1771013347435,0.60496852,84.555,84.509,14.68454695]
[1771013347627,0.60496852,84.555,84.513,10.655]
[1771013349634,0.60496852,84.555,84.513,14.68404695]
[1771013351829,8.64215472,84.55,84.498,4.02904695]
[1771013353025,8.64215472,84.55,84.459,21.3237]
[1771013353026,10.6506,84.549,84.503,4.02904695]
[1771013354237,8.64215472,84.58,84.51,4.02904695]
[1771013355340,95.01763175,84.586,84.511,4.02904695]
[1771013355835,10.6473,84.575,84.53,4.02904695]
[1771013356932,95.01763175,84.586,84.53,4.02904695]
[1771013356933,10.6482,84.568,84.53,4.02904695]
[1771013357137,8.64215472,84.58,84.499,4.02904695]
[1771013357138,0.62409784,84.579,84.499,4.02904695]
[1771013358730,10.6486,84.565,84.523,10.6538]
[1771013358932,10.6486,84.565,84.523,14.68284695]
[1771013359233,0.62409784,84.579,84.523,4.02904695]
[1771013360236,0.62409784,84.579,84.53,14.68194695]
[1771013360643,10.649,84.561,84.491,4.02904695]
[1771013360842,0.62409784,84.579,84.491,4.02904695]
[1771013361840,0.62409784,84.579,84.49,8.64215472]
[1771013361841,10.6481,84.568,84.522,14.68284695]
[1771013362428,10.649,84.562,84.522,14.68284695]
[1771013362629,10.649,84.562,84.522,10.6538]
[1771013364737,10.6497,84.556,84.515,4.02904695]
[1771013364940,0.64723147,84.566,84.515,4.02904695]
[1771013365832,10.6488,84.563,84.522,10.6539]
[1771013366632,0.64723147,84.566,84.528,10.6531]
[1771013366832,0.64723147,84.566,84.522,4.02904695]
[1771013368837,3.22497291,84.56,84.527,10.6532]
[1771013370239,3.22497291,84.57,84.528,4.02904695]
[1771013370539,21.2832,84.621,84.496,21.3143]
[1771013370540,3.22497291,84.56,84.513,4.02904695]
[1771013370933,3.22497291,84.55,84.513,4.02904695]
[1771013371136,3.22497291,84.56,84.513,4.02904695]
[1771013372836,3.22497291,84.56,84.527,14.64909673]
[1771013373036,3.22497291,84.56,84.528,3.99579673]
[1771013373642,3.22497291,84.56,84.461,14.56189551]
[1771013373643,3.22497291,84.54,84.477,3.99579673]
[1771013373947,3.22497291,84.53,84.48,3.22497291]
[1771013374136,3.22497291,84.53,84.481,3.99579673]
[1771013374735,3.22497291,84.53,84.5,10.6566]
[1771013375440,3.22497291,84.54,84.506,3.99579673]
[1771013375649,10.6509,84.546,84.506,3.99579673]
[1771013375942,3.22497291,84.55,84.506,3.99579673]
[1771013376737,3.22497291,84.56,84.514,3.82523326]
[1771013376935,0.5033034,84.569,84.514,3.82523326]
[1771013377341,0.5033034,84.569,84.46,35.54]
[1771013377342,3.22497291,84.58,84.529,3.85888584]
[1771013377639,3.22497291,84.58,84.477,165.8165]
[1771013377640,3.22497291,84.6,84.541,3.85888584]
[1771013377840,3.22497291,84.62,84.569,3.85888584]
[1771013378343,3.22497291,84.61,84.569,3.85888584]
[1771013378739,3.22497291,84.61,84.572,3.85888584]
[1771013378939,10.6426,84.613,84.572,3.85888584]
[1771013379338,10.6416,84.62,84.572,3.85888584]
[1771013379542,0.4360012,84.631,84.578,3.80164254]
[1771013380043,10.6404,84.63,84.58,10.6465]
[1771013380246,10.6404,84.63,84.58,14.44814254]
[1771013380545,10.6404,84.63,84.581,3.80164254]
[1771013385152,0.66208353,84.623,84.567,3.74584467]
[1771013386644,10.6431,84.609,84.567,3.74584467]
[1771013388046,0.64411496,84.606,84.552,3.75482896]
[1771013389745,10.6445,84.598,84.552,3.75482896]
[1771013390546,10.6453,84.591,84.552,3.75482896]
[1771013390746,0.64452932,84.593,84.552,3.75482896]
[1771013391050,0.64452932,84.593,84.521,3.75462178]
[1771013391349,0.55366967,84.581,84.517,3.8000516]
[1771013392849,10.6475,84.573,84.521,3.8000516]
[1771013393753,10.6475,84.573,84.525,3.80298768]
[1771013394850,10.6475,84.573,84.528,3.80298768]
[1771013396345,10.6475,84.573,84.529,14.46220529]
[1771013397453,8.62799888,84.59,84.529,14.46220529]
[1771013397454,10.6486,84.565,84.529,3.80930529]
[1771013398250,0.54686026,84.565,84.51,3.80345631]
[1771013398651,8.62799888,84.59,84.482,10.6589]
[1771013398652,10.6534,84.526,84.482,10.6589]
[1771013398855,8.62799888,84.53,84.482,10.6589]
[1771013399454,8.62799888,84.53,84.482,14.46256245]
[1771013399758,10.6531,84.529,84.482,14.46256245]
[1771013400146,0.54644799,84.548,84.489,3.80366245]
[1771013400351,0.54644799,84.56,84.489,3.80366245]
[1771013400755,0.54644799,84.56,84.507,3.80366245]
[1771013400948,10.6502,84.552,84.507,3.80366245]
[1771013401149,11.27493579,84.552,84.507,3.80366245]
[1771013401348,0.62473579,84.569,84.509,3.83101512]
[1771013402762,10.6484,84.566,84.518,10.6543]
[1771013403357,10.6484,84.566,84.518,14.48531512]
[1771013403556,0.62473579,84.569,84.523,3.83101512]
[1771013403755,0.68063212,84.584,84.523,3.83101512]
[1771013404462,0.68063212,84.583,84.525,10.6535]
[1771013404759,8.63977271,84.59,84.501,3.83101512]
[1771013404760,0.68063212,84.569,84.501,3.83101512]
[1771013405758,0.68063212,84.569,84.52,10.6541]
[1771013405959,0.68063212,84.569,84.52,3.83101512]
[1771013406359,10.6465,84.581,84.529,3.83101512]
[1771013408264,11.35815218,84.581,84.529,3.83101512]
[1771013410963,0.71227769,84.58,84.529,3.83101512]
[1771013411562,10.6468,84.579,84.53,14.48391512]
[1771013412166,10.6468,84.579,84.49,8.63977271]
[1771013412167,10.6456,84.589,84.538,3.83101512]
[1771013412961,0.70704069,84.623,84.541,3.83101512]
[1771013414168,10.6423,84.615,84.563,3.83101512]
[1771013414365,0.70704069,84.614,84.544,3.83101512]
[1771013414574,0.70704069,84.609,84.544,3.83101512]
[1771013415366,0.74382259,84.624,84.564,3.83101512]
[1771013415972,10.6431,84.608,84.564,3.83101512]
[1771013416472,10.6431,84.608,84.565,10.6485]
[1771013416865,0.74382259,84.607,84.564,3.83101512]
[1771013417773,10.644,84.601,84.564,3.83101512]
[1771013418072,10.644,84.601,84.503,35.54]
[1771013418073,0.56013797,84.6,84.547,3.83101512]
[1771013418372,10.6462,84.584,84.547,3.83101512]
[1771013418771,10.6453,84.591,84.547,3.83101512]
[1771013419562,10.6444,84.598,84.549,3.83101512]
[1771013420470,10.6444,84.598,84.52,8.63977271]
[1771013420471,10.6434,84.606,84.557,3.83101512]
[1771013420666,0.55102438,84.614,84.557,3.83101512]
[1771013421472,10.6433,84.607,84.564,10.6486]
[1771013421672,10.6433,84.607,84.557,3.83101512]
[1771013422074,11.19342438,84.614,84.57,10.6478]
[1771013422267,11.11369108,84.614,84.571,3.84034532]
[1771013422470,0.47129108,84.613,84.571,3.84034532]
[1771013422668,10.6427,84.611,84.571,3.84034532]
[1771013423872,0.48358677,84.6,84.555,3.83419748]
[1771013424872,10.6444,84.599,84.556,10.6496]
[1771013425584,10.6444,84.599,84.555,3.83419748]
[1771013425585,10.6444,84.599,84.562,10.6488]
[1771013427370,10.6451,84.592,84.555,3.83419748]
[1771013427583,108.44,84.608,84.555,3.83419748]
[1771013427977,0.63888695,84.607,84.555,3.83419748]
[1771013428276,0.63888695,84.605,84.555,3.83419748]
[1771013428584,10.645,84.593,84.557,10.6495]
[1771013428780,10.645,84.593,84.555,3.83419748]
[1771013429081,10.6456,84.589,84.555,3.83419748]
[1771013429478,3.22309955,84.57,84.55,10.6503]
[1771013429680,3.22309955,84.58,84.55,10.6503]
[1771013429984,11.19243861,84.589,84.55,10.6503]
[1771013430183,0.54683861,84.589,84.55,10.6503]
[1771013431483,3.22309955,84.59,84.554,10.6498]
[1771013431677,3.22309955,84.59,84.554,14.45086782]
[1771013432183,13.86849955,84.59,84.554,3.80106782]
[1771013433982,10.6464,84.582,84.54,10.6516]
[1771013434186,3.77402732,84.58,84.54,10.6516]
[1771013435076,3.22309955,84.57,84.54,10.6516]
[1771013436081,3.22309955,84.57,84.545,10.6509]
[1771013436383,3.77402732,84.58,84.545,10.6509]
[1771013437282,3.22309955,84.58,84.545,10.6509]
[1771013440490,3.22309955,84.58,84.545,14.6741673]
[1771013440689,3.22309955,84.59,84.554,4.0232673]
[1771013441284,3.22309955,84.59,84.556,4.0232673]
[1771013443184,10.6456,84.589,84.556,4.0232673]
[1771013444183,3.22309955,84.57,84.546,10.6509]
[1771013444386,3.22309955,84.57,84.541,4.0232673]
[1771013445490,3.22309955,84.57,84.542,10.6514]
[1771013446992,3.22309955,84.56,84.527,4.0232673]
[1771013448788,3.22309955,84.56,84.534,10.6523]
[1771013450797,3.22309955,84.56,84.527,14.6764673]
[1771013451300,3.22309955,84.56,84.528,4.0232673]
[1771013451702,3.22309955,84.57,84.533,10.6525]
[1771013452101,3.22309955,84.58,84.534,4.0232673]
[1771013453101,3.22309955,84.59,84.544,4.0232673]
[1771013454596,3.22309955,84.59,84.505,21.312]
[1771013454597,3.22309955,84.59,84.553,14.6732673]
[1771013455302,3.22309955,84.57,84.538,14.6750673]
[1771013455996,11.23661648,84.579,84.542,10.6513]
[1771013458004,3.22309955,84.59,84.55,4.0232673]
[1771013459600,3.22309955,84.58,84.55,4.0232673]
[1771013460502,3.22309955,84.57,84.537,10.6519]
[1771013461303,3.22309955,84.57,84.54,4.0302509]
[1771013461510,3.22309955,84.58,84.54,4.0302509]
[1771013461702,0.52139857,84.591,84.54,4.0302509]
[1771013461703,3.22309955,84.57,84.54,4.0302509]
[1771013462503,3.22309955,84.56,84.527,4.0302509]
[1771013462710,3.22309955,84.57,84.527,4.0302509]
[1771013462906,0.52139857,84.579,84.527,4.0302509]
[1771013463404,0.52139857,84.579,84.531,10.6527]
[1771013463405,10.6473,84.575,84.531,10.6527]
[1771013463610,3.22309955,84.57,84.532,4.0302509]
[1771013464908,3.22435781,84.57,84.533,10.6525]
[1771013465109,3.22435781,84.57,84.534,4.0302509]
[1771013466108,3.22435781,84.57,84.536,10.6521]
[1771013466308,3.22435781,84.59,84.537,4.0302509]
[1771013466810,3.22435781,84.58,84.537,4.0302509]
[1771013467208,0.53444821,84.62,84.551,4.0302509]
[1771013467405,3.22435781,84.61,84.571,4.0302509]
[1771013467607,3.22435781,84.61,84.502,29.35531625]
[1771013467608,3.22435781,84.58,84.531,4.0302509]
[1771013467811,3.22435781,84.57,84.531,4.0302509]
[1771013468008,3.22435781,84.57,84.51,22.01648719]
[1771013468009,3.22435781,84.56,84.516,4.0302509]
[1771013469816,3.22435781,84.56,84.47,115.56]
[1771013469817,3.22435781,84.54,84.509,10.6555]
[1771013470509,3.22435781,84.54,84.501,4.0302509]
[1771013471207,3.22435781,84.53,84.501,4.0302509]
[1771013474305,3.22435781,84.52,84.49,10.6579]
[1771013474509,3.22435781,84.52,84.49,14.6881509]
[1771013474814,3.22435781,84.53,84.49,14.6881509]
[1771013477014,3.22435781,84.53,84.497,10.6571]
[1771013478608,3.22435781,84.54,84.498,4.0302509]
[1771013479708,3.22435781,84.54,84.502,10.6564]
[1771013480818,3.22435781,84.54,84.503,4.0302509]
[1771013483906,1.2490231,84.548,84.503,4.0302509]
[1771013483907,3.22435781,84.53,84.503,4.0302509]
[1771013484921,4.23125983,84.53,84.491,14.6879509]
[1771013485114,3.22435781,84.53,84.491,14.6879509]
[1771013485317,3.22435781,84.52,84.483,4.0302509]
[1771013486022,3.22435781,84.52,84.488,10.6581]
[1771013487310,3.22435781,84.52,84.483,4.0302509]
[1771013487311,3.22435781,84.52,84.494,10.6574]
[1771013489819,3.22435781,84.52,84.5,10.6566]
[1771013490018,1.00690202,84.528,84.5,10.6566]
[1771013491122,3.22435781,84.53,84.5,10.6566]
[1771013496424,3.22435781,84.53,84.501,3.74905793]
[1771013499325,3.22435781,84.54,84.501,3.74905793]
[1771013500220,0.98213205,84.543,84.501,3.74905793]
[1771013500624,10.6514,84.542,84.507,10.6558]
[1771013500824,3.22435781,84.54,84.507,10.6558]
[1771013501024,3.22435781,84.53,84.507,10.6558]
[1771013501831,1.10564067,84.539,84.507,10.6558]
[1771013504325,1.10564067,84.539,84.5,10.6567]
[1771013504824,1.10564067,84.539,84.505,10.656]
[1771013507236,3.22435781,84.56,84.51,3.74905793]
[1771013507636,3.22435781,84.57,84.521,3.74905793]
[1771013507833,1.19677124,84.576,84.537,3.74905793]
[1771013508431,9.60076806,84.595,84.542,3.74905793]
[1771013508633,1.19677124,84.595,84.542,3.74905793]
[1771013509234,10.6431,84.609,84.565,3.74905793]
[1771013510331,3.22435781,84.6,84.565,3.74905793]
[1771013510733,10.6434,84.606,84.565,3.74905793]
[1771013511329,11.91416821,84.606,84.565,3.74905793]
[1771013511531,3.22435781,84.6,84.565,3.74905793]
[1771013513140,11.91416821,84.606,84.565,3.74905793]
[1771013514830,1.27076821,84.606,84.567,3.74905793]
[1771013515435,3.22435781,84.61,84.57,3.74905793]
[1771013516847,3.22435781,84.63,84.58,3.22435781]
[1771013517049,3.22435781,84.64,84.591,3.74905793]
[1771013517536,13.86355781,84.64,84.593,10.6449]
[1771013517745,13.86355781,84.64,84.543,94.4]
[1771013517746,3.22435781,84.64,84.594,3.74905793]